fUST/lending_fUST_20260529
["ID","MTS","AMOUNT","RATE_DAILY","PERIOD"]
[423341100,1780063839000,-500.0,9.748e-05,2]
[423341106,1780063839000,-600.0,9.942e-05,2]
[423341069,1780063839000,-500.0,9.748e-05,2]
[423341108,1780063839000,-500.0,0.00010139,2]
[423341110,1780063839000,-503.0,0.00010298,2]
[423341112,1780063839000,-500.0,0.00010413,2]
[423341114,1780063839000,-280.76164286,0.00010643,2]
[423341121,1780063839000,-720.0,0.00010936,2]
[423341119,1780063839000,-3790.15840976,0.00010832,2]
[423341117,1780063839000,-500.0,0.00010687,2]
[423341123,1780063839000,-545.77,0.00010957,2]
[423341096,1780063839000,-500.0,9.748e-05,2]
[423341071,1780063839000,-500.0,9.748e-05,2]
[423341052,1780063839000,-500.0,9.748e-05,2]
[423341063,1780063839000,-500.0,9.748e-05,2]
[423341011,1780063839000,-500.0,9.748e-05,2]
[423341013,1780063839000,-500.0,9.748e-05,2]
[423341015,1780063839000,-500.0,9.748e-05,2]
[423341017,1780063839000,-500.0,9.748e-05,2]
[423341019,1780063839000,-500.0,9.748e-05,2]
[423341032,1780063839000,-500.0,9.748e-05,2]
[423341021,1780063839000,-500.0,9.748e-05,2]
[423341036,1780063839000,-500.0,9.748e-05,2]
[423341038,1780063839000,-500.0,9.748e-05,2]
[423341034,1780063839000,-500.0,9.748e-05,2]
[423341040,1780063839000,-500.0,9.748e-05,2]
[423341023,1780063839000,-500.0,9.748e-05,2]
[423341025,1780063839000,-500.0,9.748e-05,2]
[423341029,1780063839000,-500.0,9.748e-05,2]
[423341042,1780063839000,-500.0,9.748e-05,2]
[423341027,1780063839000,-500.0,9.748e-05,2]
[423341030,1780063839000,-500.0,9.748e-05,2]
[423341044,1780063839000,-400.09432069,9.748e-05,2]
[423341046,1780063839000,-500.0,9.748e-05,2]
[423341054,1780063839000,-500.0,9.748e-05,2]
[423341048,1780063839000,-500.0,9.748e-05,2]
[423341050,1780063839000,-500.0,9.748e-05,2]
[423341059,1780063839000,-500.0,9.748e-05,2]
[423341057,1780063839000,-500.0,9.748e-05,2]
[423341056,1780063839000,-500.0,9.748e-05,2]
[423341065,1780063839000,-500.0,9.748e-05,2]
[423341061,1780063839000,-500.0,9.748e-05,2]
[423341067,1780063839000,-500.0,9.748e-05,2]
[423341128,1780063839000,-500.0,0.00010958,2]
[423341171,1780063839000,-500.0,0.00011506,2]
[423341134,1780063839000,-500.0,0.00010958,2]
[423341197,1780063839000,-2243.13533391,0.000118,2]
[423341205,1780063839000,-545.77,0.00012053,2]
[423341199,1780063839000,-2243.13533391,0.000119,2]
[423341201,1780063839000,-2243.13533391,0.00012,2]
[423341203,1780063839000,-864.0,0.0001203,2]
[423341209,1780063839000,-500.0,0.00012054,2]
[423341212,1780063839000,-500.0,0.00012054,2]
[423341207,1780063839000,-500.0,0.00012053,2]
[423341211,1780063839000,-500.0,0.00012054,2]
[423341236,1780063839000,-545.77,0.00012875,2]
[423341228,1780063839000,-460.2,0.00012601,2]
[423341216,1780063839000,-545.77,0.00012327,2]
[423341224,1780063839000,-500.0,0.00012328,2]
[423341220,1780063839000,-629.49155849,0.00012328,2]
[423341215,1780063839000,-4292.9837464,0.00012288,2]
[423341230,1780063839000,-500.0,0.00012602,2]
[423341222,1780063839000,-500.0,0.00012328,2]
[423341232,1780063839000,-645.45224553,0.00012602,2]
[423341226,1780063839000,-545.77,0.00012601,2]
[423341218,1780063839000,-500.0,0.00012327,2]
[423341238,1780063839000,-500.0,0.00012876,2]
[423341234,1780063839000,-323.58969008,0.00012643,2]
[423341240,1780063839000,-767.15540412,0.00013064,2]
[423341244,1780063839000,-500.0,0.0001315,2]
[423341246,1780063839000,-484.3,0.000132,2]
[423341248,1780063839000,-1000.0,0.00013233,2]
[423341130,1780063839000,-500.49348083,0.00010958,2]
[423341195,1780063839000,-500.0,0.0001178,2]
[423341193,1780063839000,-500.0,0.0001178,2]
[423341242,1780063839000,-545.77,0.00013149,2]
[423341191,1780063839000,-500.0,0.0001178,2]
[423341136,1780063839000,-465.8989259,0.00010958,2]
[423341132,1780063839000,-500.0,0.00010958,2]
[423341189,1780063839000,-500.0,0.00011779,2]
[423341138,1780063839000,-15000.0,0.00010959,2]
[423341140,1780063839000,-593.13,0.00010961,2]
[423341149,1780063839000,-621.91060562,0.00011206,2]
[423341151,1780063839000,-545.77,0.00011231,2]
[423341155,1780063839000,-500.0,0.00011232,2]
[423341147,1780063839000,-2243.13533391,0.000112,2]
[423341144,1780063839000,-160.0,0.00011001,2]
[423341157,1780063839000,-500.0,0.00011232,2]
[423341142,1780063839000,-2243.13533391,0.00011,2]
[423341159,1780063839000,-500.0,0.00011232,2]
[423341153,1780063839000,-500.0,0.00011231,2]
[423341179,1780063839000,-384.64881112,0.00011623,2]
[423341145,1780063839000,-2243.13533391,0.000111,2]
[423341165,1780063839000,-318.358824,0.00011445,2]
[423341163,1780063839000,-2243.13533391,0.000114,2]
[423341167,1780063839000,-545.77,0.00011505,2]
[423341175,1780063839000,-500.0,0.00011506,2]
[423341180,1780063839000,-150.08495811,0.00011631,7]
[423341169,1780063839000,-500.0,0.00011505,2]
[423341161,1780063839000,-2243.13533391,0.000113,2]
[423341183,1780063839000,-1.91504189,0.00011631,7]
[423341177,1780063839000,-2243.13533391,0.000116,2]
[423341173,1780063839000,-500.0,0.00011506,2]
[423341185,1780063839000,-2243.13533391,0.000117,2]
[423341187,1780063839000,-545.77,0.00011779,2]
[423341252,1780063840000,-648.0,0.00013273,2]
[423341250,1780063840000,-2204.0,0.00013273,2]
[423341255,1780063840000,-3629.0,0.00013273,2]
[423341263,1780063840000,-21206.32483128,0.00013463,2]
[423341257,1780063840000,-185.0,0.00013273,2]
[423341261,1780063840000,-500.0,0.00013424,2]
[423341265,1780063840000,-3602.28317333,0.00013463,2]
[423341259,1780063840000,-545.77,0.00013423,2]
[423341452,1780063841000,-500.0,0.00013758,2]
[423341462,1780063841000,-1326.81307308,0.00014,2]
[423341464,1780063841000,-500.0,0.00014032,2]
[423341466,1780063841000,-1326.81307308,0.000141,2]
[423341469,1780063841000,-166.4085,0.00014184,5]
[423341454,1780063841000,-160.0,0.00013876,2]
[423341473,1780063841000,-500.0,0.00014246,2]
[423341456,1780063841000,-161.13621273,0.000139,7]
[423341458,1780063841000,-545.77,0.00013971,2]
[423341471,1780063841000,-545.77,0.00014245,2]
[423341460,1780063841000,-500.0,0.00013972,2]
[423341479,1780063841000,-151.5,0.00014282,2]
[423341477,1780063841000,-151.5,0.00014282,2]
[423341487,1780063841000,-256.89473684,0.00014298,2]
[423341494,1780063841000,-1326.81307308,0.000144,2]
[423341481,1780063841000,-151.5,0.00014282,2]
[423341483,1780063841000,-151.5,0.00014282,2]
[423341485,1780063841000,-223.17964658,0.00014282,2]
[423341490,1780063841000,-1326.81307308,0.000143,2]
[423341450,1780063841000,-202.766156,0.00013699,2]
[423341475,1780063841000,-151.5,0.00014282,2]
[423341444,1780063841000,-151.0,0.00013699,2]
[423341408,1780063841000,-151.0,0.00013499,2]
[423341446,1780063841000,-151.0,0.00013699,2]
[423341492,1780063841000,-500.0,0.00014306,2]
[423341402,1780063841000,-128568.39199539,0.00013463,2]
[423341414,1780063841000,-151.0,0.00013499,2]
[423341416,1780063841000,-545.77,0.00013697,2]
[423341404,1780063841000,-500.0,0.00013484,2]
[423341406,1780063841000,-156.49626033,0.00013489,2]
[423341417,1780063841000,-404.807,0.00013698,2]
[423341419,1780063841000,-500.0,0.00013698,2]
[423341421,1780063841000,-151.0,0.00013699,2]
[423341412,1780063841000,-151.0,0.00013499,2]
[423341410,1780063841000,-151.0,0.00013499,2]
[423341423,1780063841000,-151.0,0.00013699,2]
[423341425,1780063841000,-151.0,0.00013699,2]
[423341429,1780063841000,-151.0,0.00013699,2]
[423341430,1780063841000,-151.0,0.00013699,2]
[423341434,1780063841000,-151.0,0.00013699,2]
[423341432,1780063841000,-151.0,0.00013699,2]
[423341438,1780063841000,-151.0,0.00013699,2]
[423341436,1780063841000,-151.0,0.00013699,2]
[423341440,1780063841000,-151.0,0.00013699,2]
[423341448,1780063841000,-151.0,0.00013699,2]
[423341442,1780063841000,-151.0,0.00013699,2]
[423341496,1780063841000,-326.0419999,0.00014433,2]
[423341427,1780063841000,-151.0,0.00013699,2]
[423341500,1780063841000,-456.5135743,0.00014435,2]
[423341566,1780063841000,-545.77,0.00015615,2]
[423341562,1780063841000,-545.77,0.00015341,2]
[423341551,1780063841000,-545.77,0.00015067,2]
[423341571,1780063841000,-1000.0,0.00016012,2]
[423341554,1780063841000,-500.0,0.00015128,2]
[423341596,1780063841000,-31336.79963093,0.000165,2]
[423341553,1780063841000,-190.682985,0.00015068,2]
[423341556,1780063841000,-1326.81307308,0.000152,2]
[423341569,1780063841000,-545.77,0.00015889,2]
[423341568,1780063841000,-500.0,0.00015676,2]
[423341558,1780063841000,-456.7998478,0.00015255,2]
[423341573,1780063841000,-492.0,0.00016012,2]
[423341575,1780063841000,-326.1200344,0.00016076,2]
[423341577,1780063841000,-545.77,0.00016163,2]
[423341581,1780063841000,-185.0,0.00016273,2]
[423341583,1780063841000,-545.77,0.00016436,2]
[423341585,1780063841000,-200.0,0.00016438,2]
[423341587,1780063841000,-1409.2433567,0.00016438,2]
[423341589,1780063841000,-6812.20147383,0.00016496,2]
[423341591,1780063841000,-207753.98176077,0.000165,2]
[423341498,1780063841000,-152.7630595,0.00014433,2]
[423341560,1780063841000,-1326.81307308,0.000153,2]
[423341564,1780063841000,-500.0,0.00015402,2]
[423341579,1780063841000,-3629.0,0.00016273,2]
[423341547,1780063841000,-20238.99924978,0.00015,2]
[423341516,1780063841000,-500.0,0.0001458,2]
[423341518,1780063841000,-1326.81307308,0.000146,2]
[423341520,1780063841000,-1270.11067341,0.00014631,2]
[423341506,1780063841000,-456.7998478,0.00014435,2]
[423341510,1780063841000,-545.77,0.00014519,2]
[423341508,1780063841000,-151.0,0.000145,2]
[423341514,1780063841000,-244.0,0.00014556,2]
[423341512,1780063841000,-1000.0,0.00014556,2]
[423341522,1780063841000,-366.4177373,0.00014643,2]
[423341534,1780063841000,-151.0,0.000148,2]
[423341524,1780063841000,-1326.81307308,0.000147,2]
[423341536,1780063841000,-151.0,0.000148,2]
[423341528,1780063841000,-151.0,0.000147,2]
[423341541,1780063841000,-1326.81307308,0.000149,2]
[423341530,1780063841000,-151.0,0.000147,2]
[423341532,1780063841000,-545.77,0.00014793,2]
[423341526,1780063841000,-151.0,0.000147,2]
[423341539,1780063841000,-500.0,0.00014854,2]
[423341545,1780063841000,-243.0,0.00015,2]
[423341543,1780063841000,-920052.41682098,0.00015,2]
[423341538,1780063841000,-151.0,0.000148,2]
[423341549,1780063841000,-1326.81307308,0.00015,2]
[423341859,1780063843000,-13761.89473413,0.000165,2]
[423341840,1780063843000,-302.62139999,9.747e-05,2]
[423341848,1780063843000,-197.37860001,9.747e-05,2]
[423341857,1780063843000,-169.16457669,9.748e-05,2]
[423341863,1780063843000,-2682.75126377,0.000165,2]
[423341861,1780063843000,-1335.28898699,0.000165,2]
[423341855,1780063843000,-500.0,9.747e-05,2]
[423341852,1780063843000,-181.56300959,9.747e-05,2]
[423341850,1780063843000,-216.26749661,9.747e-05,2]
[423341885,1780063844000,-402.0588622,0.000165,2]
[423341882,1780063844000,-10828.6594506,0.000165,2]
[423341878,1780063844000,-500.0,9.747e-05,2]
[423341880,1780063844000,-4387.24119977,0.000165,2]
[423341875,1780063844000,-500.0,9.747e-05,2]
[423342169,1780063846000,-500.0,9.747e-05,2]
[423342170,1780063846000,-500.0,9.747e-05,2]
[423342168,1780063846000,-1680.103568,9.651e-05,2]
[423342171,1780063846000,-15708.20394184,0.000165,2]
[423342174,1780063846000,-3875.2381898,0.000165,2]
[423342180,1780063846000,-3750.0,0.000165,2]
[423342183,1780063846000,-4109.60953187,0.000165,2]
[423342172,1780063846000,-97442.93744851,0.000165,2]
[423342985,1780064029000,829.7489768,0.00020296,120]
[423343035,1780064523000,255.0,0.00020243,120]
[423343089,1780064799000,1562.55228181,0.00020548,120]
[423343199,1780065033000,-500.0,9.043e-05,2]
[423343192,1780065033000,-233.28810307,8e-05,2]
[423343195,1780065033000,-500.0,8.218e-05,2]
[423343197,1780065033000,-557.44250315,8.218e-05,2]
[423343207,1780065033000,-296.82311817,0.00012044,2]
[423343209,1780065033000,-336.10853087,0.00014044,2]
[423343196,1780065033000,-500.0,8.218e-05,2]
[423343198,1780065033000,-500.0,9.043e-05,2]
[423343194,1780065033000,-218.25229277,8.044e-05,2]
[423343202,1780065033000,-500.0,0.00011099,2]
[423343213,1780065033000,-231.99118656,0.00014101,2]
[423343211,1780065033000,-559.86354976,0.00014101,2]
[423343212,1780065033000,-185.0,0.00014101,2]
[423343210,1780065033000,-3026.02945024,0.00014101,2]
[423343201,1780065033000,-160.0,0.00011054,2]
[423343203,1780065033000,-500.0,0.00011099,2]
[423343200,1780065033000,-257.53770547,0.00010044,2]
[423343205,1780065033000,-309.66399247,0.00011099,2]
[423343221,1780065040000,-91.85381344,0.00014101,2]
[423343223,1780065040000,-500.0,0.00014899,2]
[423343226,1780065040000,-500.0,0.00014899,2]
[423343225,1780065040000,-500.0,0.00014899,2]
[423343227,1780065040000,-500.0,0.00014899,2]
[423343222,1780065040000,-191.11402872,0.00014899,2]
[423343231,1780065040000,-3946.1827829,0.000149,2]
[423343228,1780065040000,-500.0,0.00014899,2]
[423343229,1780065040000,-500.0,0.00014899,2]
[423343233,1780065040000,-1751.73676825,0.000149,2]
[423343224,1780065040000,-295.00943207,0.00014899,2]
[423343230,1780065040000,-500.0,0.00014899,2]
[423343232,1780065040000,-20854.85813621,0.000149,2]
[423343244,1780065043000,151.0,7.76e-05,2]
[423343246,1780065044000,-348.0,0.000149,2]
[423343245,1780065044000,-29119.99999999,0.000149,2]
[423343263,1780065047000,-7260.18493572,0.000149,2]
[423343262,1780065047000,-23318.18301749,0.000149,2]
[423343261,1780065047000,-69482.78509225,0.000149,2]
[423347946,1780065101000,178.82,0.00020293,120]
[423349273,1780065168000,800.93707747,0.00020243,120]
[423349274,1780065230000,800.93707747,0.00020243,120]
[423349278,1780065292000,800.93707747,0.00020243,120]
[423349286,1780065355000,800.93707747,0.00020243,120]
[423349289,1780065417000,800.93707747,0.00020243,120]
[423349298,1780065479000,800.93707747,0.00020457,120]
[423349302,1780065541000,800.93707747,0.00020457,120]
[423349303,1780065603000,800.93707747,0.00020457,120]
[423349304,1780065631000,242.0,0.00020457,120]
[423349306,1780065665000,800.93707747,0.00020457,120]
[423349309,1780065727000,800.93707747,0.00020457,120]
[423349315,1780065789000,800.93707747,0.00020457,120]
[423349318,1780065851000,800.93707747,0.00020457,120]
[423349324,1780065913000,800.93707747,0.00020457,120]
[423349331,1780065975000,800.93707747,0.00020457,120]
[423349336,1780066036000,800.93707747,0.00020457,120]
[423349345,1780066098000,800.93707747,0.0002049,120]
[423349346,1780066160000,800.93707747,0.00020524,120]
[423349347,1780066222000,800.93707747,0.00020524,120]
[423349691,1780066238000,-500.0,0.00013697,2]
[423349689,1780066238000,-187.37,0.00013697,2]
[423349682,1780066238000,-596.10235326,0.000134,2]
[423349681,1780066238000,-151.61,0.000133,2]
[423349686,1780066238000,-2204.0,0.00013691,2]
[423349687,1780066238000,-443.0,0.00013691,2]
[423349678,1780066238000,-151.61,0.000131,2]
[423349680,1780066238000,-596.10235326,0.000133,2]
[423349693,1780066238000,-500.0,0.00013697,2]
[423349684,1780066238000,-151.61,0.000135,2]
[423349690,1780066238000,-500.0,0.00013697,2]
[423349692,1780066238000,-501.00125911,0.00013697,2]
[423349694,1780066238000,-398.83785704,0.00013697,2]
[423349701,1780066238000,-500.0,0.00013698,2]
[423349695,1780066238000,-500.0,0.00013698,2]
[423349696,1780066238000,-500.0,0.00013698,2]
[423349700,1780066238000,-1000.0,0.00013698,2]
[423349697,1780066238000,-500.0,0.00013698,2]
[423349699,1780066238000,-620.38,0.00013698,2]
[423349705,1780066238000,-2562.25,0.00013698,2]
[423349688,1780066238000,-185.0,0.00013691,2]
[423349702,1780066238000,-500.0,0.00013698,2]
[423349698,1780066238000,-666.58,0.00013698,2]
[423349685,1780066238000,-376.77,0.0001369,2]
[423349657,1780066238000,-213.00631056,0.00011821,2]
[423349679,1780066238000,-420.0,0.00013172,2]
[423349706,1780066238000,-500.0,0.00013698,2]
[423349656,1780066238000,-5000.0,0.00011527,2]
[423349659,1780066238000,-300.0,0.00011999,2]
[423349658,1780066238000,-1101.0,0.00011998,2]
[423349660,1780066238000,-300.0,0.00011999,2]
[423349661,1780066238000,-300.0,0.00011999,2]
[423349663,1780066238000,-1907.38,0.00012,2]
[423349662,1780066238000,-300.0,0.00011999,2]
[423349672,1780066238000,-220.2318543,0.00012668,2]
[423349673,1780066238000,-1265.04583908,0.00012729,2]
[423349683,1780066238000,-596.10235326,0.000135,2]
[423349674,1780066238000,-151.61,0.000129,2]
[423349665,1780066238000,-617.49090851,0.00012008,2]
[423349666,1780066238000,-160.0,0.00012199,2]
[423349667,1780066238000,-151.61,0.000122,2]
[423349669,1780066238000,-151.61,0.000124,2]
[423349668,1780066238000,-822.34,0.00012329,2]
[423349670,1780066238000,-151.61,0.000126,2]
[423349671,1780066238000,-638.6982689,0.00012602,2]
[423349675,1780066238000,-1265.04583908,0.00012983,7]
[423349677,1780066238000,-596.10235326,0.000131,2]
[423349676,1780066238000,-596.10235326,0.00013,2]
[423349664,1780066238000,-151.61,0.00012,2]
[423349703,1780066238000,-500.0,0.00013698,2]
[423349745,1780066238000,-2946.0,0.00014526,2]
[423349707,1780066238000,-500.0,0.00013698,2]
[423349732,1780066238000,-1000.0,0.00014519,2]
[423349735,1780066238000,-2946.0,0.00014526,2]
[423349734,1780066238000,-2946.0,0.00014526,2]
[423349738,1780066238000,-2946.0,0.00014526,2]
[423349748,1780066238000,-2946.0,0.00014526,2]
[423349749,1780066238000,-2946.0,0.00014526,2]
[423349737,1780066238000,-2946.0,0.00014526,2]
[423349740,1780066238000,-2946.0,0.00014526,2]
[423349739,1780066238000,-2946.0,0.00014526,2]
[423349756,1780066238000,-2946.0,0.00014526,2]
[423349731,1780066238000,-587.0,0.0001446,2]
[423349741,1780066238000,-2946.0,0.00014526,2]
[423349746,1780066238000,-2946.0,0.00014526,2]
[423349747,1780066238000,-2946.0,0.00014526,2]
[423349744,1780066238000,-2946.0,0.00014526,2]
[423349742,1780066238000,-2946.0,0.00014526,2]
[423349750,1780066238000,-2946.0,0.00014526,2]
[423349751,1780066238000,-2946.0,0.00014526,2]
[423349753,1780066238000,-2946.0,0.00014526,2]
[423349752,1780066238000,-2946.0,0.00014526,2]
[423349754,1780066238000,-2946.0,0.00014526,2]
[423349755,1780066238000,-2946.0,0.00014526,2]
[423349743,1780066238000,-2946.0,0.00014526,2]
[423349733,1780066238000,-500.0,0.0001452,2]
[423349704,1780066238000,-1858.52,0.00013698,2]
[423349727,1780066238000,-1000.0,0.00014245,2]
[423349730,1780066238000,-159.49745742,0.0001446,2]
[423349708,1780066238000,-2626.6924,0.00013698,2]
[423349710,1780066238000,-968.56,0.00013698,2]
[423349709,1780066238000,-2626.6924,0.00013698,2]
[423349713,1780066238000,-682.808267,0.00013699,2]
[423349712,1780066238000,-1000.0,0.00013699,2]
[423349715,1780066238000,-18882.6339308,0.00013699,2]
[423349714,1780066238000,-3177.181407,0.00013699,2]
[423349723,1780066238000,-500.0,0.00013972,2]
[423349725,1780066238000,-202.99915501,0.0001403,2]
[423349724,1780066238000,-348.0,0.00013972,2]
[423349711,1780066238000,-452.79250186,0.00013698,2]
[423349726,1780066238000,-151.61,0.000141,2]
[423349720,1780066238000,-151.61,0.000139,2]
[423349716,1780066238000,-151.61,0.000137,2]
[423349719,1780066238000,-189.93628803,0.00013848,2]
[423349722,1780066238000,-430.55822974,0.00013972,2]
[423349721,1780066238000,-1000.0,0.00013971,2]
[423349718,1780066238000,-290.143,0.00013848,2]
[423349728,1780066238000,-500.0,0.00014246,2]
[423349729,1780066238000,-151.61,0.000144,2]
[423349717,1780066238000,-251.34744646,0.00013821,2]
[423349736,1780066238000,-2946.0,0.00014526,2]
[423349795,1780066239000,-1786.04,0.00014898,2]
[423349796,1780066239000,-1786.04,0.00014898,2]
[423349798,1780066239000,-500.0,0.00014898,2]
[423349797,1780066239000,-500.0,0.00014898,2]
[423349794,1780066239000,-1786.04,0.00014898,2]
[423349791,1780066239000,-2562.25,0.00014897,2]
[423349792,1780066239000,-968.56,0.00014897,2]
[423349801,1780066239000,-500.0,0.00014898,2]
[423349790,1780066239000,-1858.52,0.00014897,2]
[423349782,1780066239000,-2562.25,0.00014896,2]
[423349799,1780066239000,-500.0,0.00014898,2]
[423349793,1780066239000,-1786.04,0.00014898,2]
[423349800,1780066239000,-500.0,0.00014898,2]
[423349813,1780066239000,-500.0,0.00014898,2]
[423349802,1780066239000,-500.0,0.00014898,2]
[423349804,1780066239000,-500.0,0.00014898,2]
[423349805,1780066239000,-666.58,0.00014898,2]
[423349806,1780066239000,-666.58,0.00014898,2]
[423349807,1780066239000,-666.58,0.00014898,2]
[423349809,1780066239000,-620.38,0.00014898,2]
[423349808,1780066239000,-620.38,0.00014898,2]
[423349810,1780066239000,-620.38,0.00014898,2]
[423349811,1780066239000,-620.38,0.00014898,2]
[423349783,1780066239000,-554.38642795,0.00014896,2]
[423349823,1780066239000,-2562.25,0.00014898,2]
[423349812,1780066239000,-500.0,0.00014898,2]
[423349816,1780066239000,-500.0,0.00014898,2]
[423349803,1780066239000,-500.0,0.00014898,2]
[423349785,1780066239000,-500.0,0.00014897,2]
[423349774,1780066239000,-5017.89069292,0.00014797,2]
[423349784,1780066239000,-968.56,0.00014896,2]
[423349761,1780066239000,-153.35377938,0.0001467,2]
[423349757,1780066239000,-2955.6764169,0.00014526,2]
[423349759,1780066239000,-151.61,0.000146,2]
[423349763,1780066239000,-1786.04,0.00014763,2]
[423349762,1780066239000,-160.0,0.00014723,2]
[423349814,1780066239000,-500.0,0.00014898,2]
[423349758,1780066239000,-500.0,0.00014546,2]
[423349764,1780066239000,-385.09,0.00014763,2]
[423349765,1780066239000,-500.0,0.00014763,2]
[423349766,1780066239000,-500.0,0.00014763,2]
[423349767,1780066239000,-500.0,0.00014763,2]
[423349768,1780066239000,-177.79606939,0.00014764,2]
[423349770,1780066239000,-318.99491484,0.00014764,2]
[423349772,1780066239000,-1000.0,0.00014793,2]
[423349773,1780066239000,-500.0,0.00014794,2]
[423349769,1780066239000,-207.63137191,0.00014764,2]
[423349771,1780066239000,-247.24101915,0.00014764,2]
[423349775,1780066239000,-63067.94805619,0.00014799,2]
[423349777,1780066239000,-767.15540412,0.00014872,2]
[423349787,1780066239000,-620.38,0.00014897,2]
[423349788,1780066239000,-500.0,0.00014897,2]
[423349776,1780066239000,-151.61,0.000148,2]
[423349778,1780066239000,-620.38,0.00014896,2]
[423349789,1780066239000,-500.0,0.00014897,2]
[423349780,1780066239000,-500.0,0.00014896,2]
[423349781,1780066239000,-1858.52,0.00014896,2]
[423349779,1780066239000,-500.0,0.00014896,2]
[423349786,1780066239000,-666.58,0.00014897,2]
[423349760,1780066239000,-682.808267,0.00014658,2]
[423349818,1780066239000,-229.83128068,0.00014898,2]
[423349817,1780066239000,-500.0,0.00014898,2]
[423349863,1780066239000,-151.0,0.00014911,2]
[423349865,1780066239000,-151.0,0.00014911,2]
[423349866,1780066239000,-151.0,0.00014911,2]
[423349862,1780066239000,-151.0,0.00014911,2]
[423349864,1780066239000,-151.0,0.00014911,2]
[423349861,1780066239000,-151.0,0.00014911,2]
[423349857,1780066239000,-1169.3,0.00014899,2]
[423349853,1780066239000,-1169.3,0.00014899,2]
[423349854,1780066239000,-1169.3,0.00014899,2]
[423349856,1780066239000,-1169.3,0.00014899,2]
[423349867,1780066239000,-151.0,0.00014911,2]
[423349868,1780066239000,-151.0,0.00014911,2]
[423349879,1780066239000,-151.0,0.00014911,2]
[423349869,1780066239000,-151.0,0.00014911,2]
[423349872,1780066239000,-151.0,0.00014911,2]
[423349875,1780066239000,-151.0,0.00014911,2]
[423349870,1780066239000,-151.0,0.00014911,2]
[423349871,1780066239000,-151.0,0.00014911,2]
[423349876,1780066239000,-151.0,0.00014911,2]
[423349878,1780066239000,-151.0,0.00014911,2]
[423349873,1780066239000,-151.0,0.00014911,2]
[423349815,1780066239000,-500.0,0.00014898,2]
[423349877,1780066239000,-151.0,0.00014911,2]
[423349881,1780066239000,-151.0,0.00014911,2]
[423349880,1780066239000,-151.0,0.00014911,2]
[423349883,1780066239000,-151.0,0.00014911,2]
[423349882,1780066239000,-151.0,0.00014911,2]
[423349858,1780066239000,-500.0,0.00014899,2]
[423349859,1780066239000,-617.63166633,0.00014899,2]
[423349874,1780066239000,-151.0,0.00014911,2]
[423349847,1780066239000,-1169.3,0.00014899,2]
[423349860,1780066239000,-666.58,0.00014911,2]
[423349821,1780066239000,-1858.52,0.00014898,2]
[423349819,1780066239000,-1858.52,0.00014898,2]
[423349820,1780066239000,-1858.52,0.00014898,2]
[423349824,1780066239000,-2562.25,0.00014898,2]
[423349826,1780066239000,-2562.25,0.00014898,2]
[423349832,1780066239000,-968.56,0.00014898,2]
[423349833,1780066239000,-505.14,0.00014899,2]
[423349825,1780066239000,-2562.25,0.00014898,2]
[423349836,1780066239000,-602.06,0.00014899,2]
[423349827,1780066239000,-968.56,0.00014898,2]
[423349828,1780066239000,-185.3555054,0.00014898,2]
[423349829,1780066239000,-783.2044946,0.00014898,2]
[423349838,1780066239000,-290.08892432,0.00014899,2]
[423349822,1780066239000,-1858.52,0.00014898,2]